[Event "FIDE WYCC Top Boards Girls 2023"]
[Site "Montesilvano"]
[Date "2023.11.13"]
[Round "1.7"]
[White "Menon, Gauri"]
[Black "Hrebenshchykova, Yelyzaveta"]
[Result "0-1"]
[ECO "D85"]
[WhiteElo "1821"]
[BlackElo "2292"]
[Annotator "ChessBase"]
[PlyCount "54"]
[EventDate "2023.11.13"]
[EventType "swiss"]
[EventCountry "ITA"]
[SourceTitle "playchess.com"]
[Source "ChessBase"]
[SourceQuality "1"]
[TimeControl "40/5400+30:1800+30"]

1. d4 {[%emt 0:00:02]} Nf6 {[%emt 0:00:20]} 2. c4 {[%emt 0:00:08]} g6 {[%emt 0:05:17]} 3. Nc3 {[%emt 0:00:12]} d5 {[%emt 0:04:09]} 4. cxd5 {[%emt 0:03:05]} Nxd5 {[%emt 0:00:03]} 5. e4 {[%emt 0:01:07]} Nxc3 {[%emt 0:00:05]} 6. bxc3 {[%emt 0:00:08]} c5 {[%emt 0:00:10]} 7. Be3 {[%emt 0:02:54]} Bg7 {[%emt 0:01:45]} 8. Rc1 {[%emt 0:02:52]} Qa5 {[%emt 0:08:27]} 9. Qd2 {[%emt 0:01:32]} O-O {[%emt 0:13:54]} 10. Nf3 {[%emt 0:04:13]} Nc6 {[%emt 0:11:25]} 11. d5 {[%emt 0:09:24]} Rd8 {[%emt 0:00:20]} 12. Bd3 {[%emt 0:10:26]} Bg4 {[%emt 0:06:00]} 13. c4 {[%emt 0:12:42]} Qa3 {[%emt 0:09:26]} 14. Bb1 {[%emt 0:15:24]} Bxf3 {[%emt 0:06:55]} 15. gxf3 {[%emt 0:00:17]} Bb2 {[%emt 0:11:58]} 16. Rc2 {[%emt 0:02:35]} Nd4 {[%emt 0:00:10]} 17. Bxd4 {[%emt 0:04:43]} Qxf3 {[%emt 0:01:00]} 18. Rxb2 {[%emt 0:11:39]} Qxh1+ {[%emt 0:00:21]} 19. Ke2 {[%emt 0:00:03]} cxd4 {[%emt 0:00:08]} 20. Qf4 {[%emt 0:01:04]} b6 {[%emt 0:02:44]} 21. e5 {[%emt 0:11:56]} Rac8 {[%emt 0:02:35]} 22. Be4 {[%emt 0:00:46]} Qa1 {[%emt 0:00:10]} 23. Rc2 {[%emt 0:00:12]} e6 {[%emt 0:05:15]} 24. d6 {[%emt 0:00:55]} d3+ {[%emt 0:00:32]} 25. Bxd3 {[%emt 0:00:26]} Rc5 {[%emt 0:00:20]} 26. Qh4 {[%emt 0:03:03]} Rxe5+ {[%emt 0:01:39]} 27. Kf3 {[%emt 0:00:26]} Rxd6 {[%emt 0:00:05]} 0-1

[Event "FIDE WYCC Top Boards Girls 2023"]
[Site "Montesilvano"]
[Date "2023.11.13"]
[Round "1.8"]
[White "Kurmangaliyeva, Liya"]
[Black "Hyatt, Jessica"]
[Result "1/2-1/2"]
[ECO "A84"]
[WhiteElo "2236"]
[BlackElo "1818"]
[Annotator "ChessBase"]
[PlyCount "121"]
[EventDate "2023.11.13"]
[EventType "swiss"]
[EventCountry "ITA"]
[SourceTitle "playchess.com"]
[Source "ChessBase"]
[SourceQuality "1"]
[TimeControl "40/5400+30:1800+30"]

1. d4 {[%emt 0:00:22]} d5 {[%emt 0:00:10]} 2. c4 {[%emt 0:00:19]} e6 {[%emt 0:00:10]} 3. Nf3 {[%emt 0:00:11]} c6 {[%emt 0:02:20]} 4. e3 {[%emt 0:05:05]} Bd6 {[%emt 0:00:46]} 5. b3 {[%emt 0:05:10]} Nd7 {[%emt 0:01:48]} 6. Bb2 {[%emt 0:03:30]} f5 {[%emt 0:01:03]} 7. Bd3 {[%emt 0:02:59]} Qf6 {[%emt 0:01:38]} 8. Qc2 {[%emt 0:10:24]} Ne7 {[%emt 0:00:59]} 9. Nc3 {[%emt 0:01:52]} O-O {[%emt 0:10:35]} 10. Ne2 {[%emt 0:02:30]} a5 {[%emt 0:16:56]} 11. a3 {[%emt 0:04:18]} Kh8 {[%emt 0:15:34]} 12. Ng3 {[%emt 0:13:24]} e5 {[%emt 0:15:59]} 13. Nh5 {[%emt 0:15:26]} Qe6 {[%emt 0:02:27]} 14. dxe5 {[%emt 0:04:11]} Nxe5 {[%emt 0:00:26]} 15. Nxe5 {[%emt 0:01:23]} Bxe5 {[%emt 0:00:10]} 16. O-O {[%emt 0:00:28]} Bd7 {[%emt 0:03:50]} 17. Rad1 {[%emt 0:04:05]} Bxb2 {[%emt 0:06:06]} 18. Qxb2 {[%emt 0:00:07]} Qf7 {[%emt 0:01:11]} 19. Nf4 {[%emt 0:00:58]} Qf6 {[%emt 0:00:33]} 20. Qd2 {[%emt 0:04:39]} Be8 {[%emt 0:06:30]} 21. cxd5 {[%emt 0:03:35]} cxd5 {[%emt 0:02:54]} 22. Be2 {[%emt 0:02:05]} Bf7 {[%emt 0:00:11]} 23. Bb5 {[%emt 0:04:39]} g5 {[%emt 0:02:47]} 24. Ne2 {[%emt 0:00:41]} Bh5 {[%emt 0:01:22]} 25. Rc1 {[%emt 0:01:53]} Nc6 {[%emt 0:02:40]} 26. Bxc6 {[%emt 0:01:31]} bxc6 {[%emt 0:00:04]} 27. Nd4 {[%emt 0:00:09]} Be8 {[%emt 0:00:20]} 28. Rc5 {[%emt 0:00:41]} a4 {[%emt 0:01:11]} 29. b4 {[%emt 0:00:22]} Bd7 {[%emt 0:02:00]} 30. Rfc1 {[%emt 0:00:35]} f4 {[%emt 0:00:46]} 31. exf4 {[%emt 0:03:52]} Qxf4 {[%emt 0:01:34]} 32. Qxf4 {[%emt 0:01:24]} Rxf4 {[%emt 0:00:03]} 33. Nxc6 {[%emt 0:00:20]} Bxc6 {[%emt 0:00:17]} 34. Rxc6 {[%emt 0:00:04]} Rd4 {[%emt 0:00:21]} 35. Kf1 {[%emt 0:01:30]} Rd2 {[%emt 0:00:41]} 36. R1c2 {[%emt 0:02:26]} Rd3 {[%emt 0:01:02]} 37. R6c3 {[%emt 0:00:23]} Rxc3 {[%emt 0:00:20]} 38. Rxc3 {[%emt 0:00:05]} Kg7 {[%emt 0:00:46]} 39. Rc5 {[%emt 0:00:34]} Rd8 {[%emt 0:00:26]} 40. Ke2 {[%emt 0:00:00]} Kf6 {[%emt 0:00:00]} 41. Rc7 {[%emt 0:06:55]} Ke5 {[%emt 0:03:55]} 42. Ke3 {[%emt 0:02:18]} h6 {[%emt 0:01:49]} 43. Re7+ {[%emt 0:00:26]} Kd6 {[%emt 0:00:15]} 44. Rh7 {[%emt 0:00:48]} Ke5 {[%emt 0:02:09]} 45. Rxh6 {[%emt 0:01:02]} Rc8 {[%emt 0:00:37]} 46. Kd2 {[%emt 0:00:13]} Kd4 {[%emt 0:00:48]} 47. Rh3 {[%emt 0:01:14]} Rf8 {[%emt 0:00:33]} 48. f3 {[%emt 0:00:16]} Re8 {[%emt 0:00:55]} 49. Rg3 {[%emt 0:03:27]} Kc4 {[%emt 0:00:28]} 50. b5 {[%emt 0:19:09]} Rb8 {[%emt 0:01:15]} 51. Rxg5 {[%emt 0:00:42]} Rxb5 {[%emt 0:00:08]} 52. f4 {[%emt 0:00:52]} Rb2+ {[%emt 0:01:17]} 53. Kc1 {[%emt 0:00:07]} Rf2 {[%emt 0:00:36]} 54. f5 {[%emt 0:00:30]} d4 {[%emt 0:00:17]} 55. Kd1 {[%emt 0:00:44]} d3 {[%emt 0:00:40]} 56. Rg8 {[%emt 0:00:54]} Rxf5 {[%emt 0:00:50]} 57. Rc8+ {[%emt 0:00:11]} Kb3 {[%emt 0:00:44]} 58. Kd2 {[%emt 0:00:55]} Rf2+ {[%emt 0:00:22]} 59. Kxd3 {[%emt 0:00:04]} Rxg2 {[%emt 0:00:06]} 60. h4 {[%emt 0:00:54]} Rh2 {[%emt 0:00:21]} 61. h5 {[%emt 0:00:20]} 1/2-1/2

[Event "FIDE WYCC Top Boards Girls 2023"]
[Site "Montesilvano"]
[Date "2023.11.13"]
[Round "1.9"]
[White "Gvatua, Mariam"]
[Black "Nurmanova, Alua"]
[Result "0-1"]
[ECO "E94"]
[WhiteElo "1701"]
[BlackElo "2367"]
[Annotator "ChessBase"]
[PlyCount "64"]
[EventDate "2023.11.13"]
[EventType "swiss"]
[EventCountry "ITA"]
[SourceTitle "playchess.com"]
[Source "ChessBase"]
[SourceQuality "1"]
[TimeControl "40/5400+30:1800+30"]

1. Nf3 {[%emt 0:00:03]} Nf6 {[%emt 0:00:17]} 2. c4 {[%emt 0:00:14]} g6 {[%emt 0:00:13]} 3. Nc3 {[%emt 0:00:07]} Bg7 {[%emt 0:00:25]} 4. e4 {[%emt 0:00:15]} d6 {[%emt 0:00:06]} 5. d4 {[%emt 0:00:10]} O-O {[%emt 0:00:12]} 6. Be2 {[%emt 0:00:14]} Na6 {[%emt 0:06:45]} 7. O-O {[%emt 0:01:25]} e5 {[%emt 0:01:51]} 8. d5 {[%emt 0:06:15]} Nc5 {[%emt 0:00:29]} 9. Qc2 {[%emt 0:01:50]} a5 {[%emt 0:00:55]} 10. Ne1 {[%emt 0:03:06]} Nfd7 {[%emt 0:03:09]} 11. f3 {[%emt 0:00:44]} f5 {[%emt 0:00:41]} 12. Be3 {[%emt 0:01:16]} f4 {[%emt 0:04:05]} 13. Bf2 {[%emt 0:00:06]} g5 {[%emt 0:00:28]} 14. Nd3 {[%emt 0:04:57]} h5 {[%emt 0:02:44]} 15. b3 {[%emt 0:05:03]} Rf7 {[%emt 0:19:44]} 16. a3 {[%emt 0:01:13]} Bf8 {[%emt 0:01:34]} 17. b4 {[%emt 0:01:13]} Nxd3 {[%emt 0:00:07]} 18. Qxd3 {[%emt 0:00:12]} Rg7 {[%emt 0:00:14]} 19. Qd1 {[%emt 0:14:30]} Nf6 {[%emt 0:06:45]} 20. Kh1 {[%emt 0:10:47]} g4 {[%emt 0:05:21]} 21. Qe1 {[%emt 0:19:54]} Nh7 {[%emt 0:05:06]} 22. g3 {[%emt 0:08:32]} Qf6 {[%emt 0:16:20]} 23. Rd1 {[%emt 0:07:47]} gxf3 {[%emt 0:01:10]} 24. Bxf3 {[%emt 0:02:28]} Ng5 {[%emt 0:01:03]} 25. Bxh5 {[%emt 0:04:13]} Bh3 {[%emt 0:12:42]} 26. Rg1 {[%emt 0:05:19]} f3 {[%emt 0:02:57]} 27. Be3 {[%emt 0:00:44]} axb4 {[%emt 0:01:26]} 28. axb4 {[%emt 0:00:12]} Ra3 {[%emt 0:00:40]} 29. Rc1 {[%emt 0:00:58]} Be7 {[%emt 0:01:16]} 30. Nd1 {[%emt 0:01:10]} Rh7 {[%emt 0:00:57]} 31. g4 {[%emt 0:00:15]} Bg2+ {[%emt 0:00:05]} 32. Rxg2 {[%emt 0:00:09]} fxg2+ {[%emt 0:00:01]} 0-1

[Event "FIDE WYCC Top Boards Girls 2023"]
[Site "Montesilvano"]
[Date "2023.11.13"]
[Round "1.10"]
[White "Wang, Chuqiao"]
[Black "Levchenko, Marina"]
[Result "1-0"]
[ECO "D36"]
[WhiteElo "2215"]
[BlackElo "1700"]
[Annotator "ChessBase"]
[PlyCount "111"]
[EventDate "2023.11.13"]
[EventType "swiss"]
[EventCountry "ITA"]
[SourceTitle "playchess.com"]
[Source "ChessBase"]
[SourceQuality "1"]
[TimeControl "40/5400+30:1800+30"]

1. d4 {[%emt 0:00:07]} d5 {[%emt 0:00:07]} 2. c4 {[%emt 0:00:15]} e6 {[%emt 0:00:11]} 3. Nc3 {[%emt 0:00:09]} Be7 {[%emt 0:00:13]} 4. Nf3 {[%emt 0:00:29]} Nf6 {[%emt 0:00:12]} 5. cxd5 {[%emt 0:00:09]} exd5 {[%emt 0:00:10]} 6. Bg5 {[%emt 0:00:05]} O-O {[%emt 0:00:48]} 7. e3 {[%emt 0:00:25]} h6 {[%emt 0:01:18]} 8. Bf4 {[%emt 0:00:14]} c6 {[%emt 0:11:55]} 9. Bd3 {[%emt 0:01:24]} Nbd7 {[%emt 0:03:12]} 10. Qc2 {[%emt 0:02:12]} Re8 {[%emt 0:03:37]} 11. O-O {[%emt 0:00:20]} Nf8 {[%emt 0:01:54]} 12. Rab1 {[%emt 0:01:37]} Bd6 {[%emt 0:03:42]} 13. Bxd6 {[%emt 0:02:35]} Qxd6 {[%emt 0:00:10]} 14. b4 {[%emt 0:00:07]} Be6 {[%emt 0:23:28]} 15. b5 {[%emt 0:00:32]} N6d7 {[%emt 0:04:47]} 16. bxc6 {[%emt 0:00:27]} Qxc6 {[%emt 0:01:01]} 17. Qb2 {[%emt 0:03:46]} b6 {[%emt 0:03:51]} 18. Rbc1 {[%emt 0:01:29]} Red8 {[%emt 0:05:53]} 19. Nb5 {[%emt 0:00:45]} Qb7 {[%emt 0:00:28]} 20. Nc7 {[%emt 0:00:25]} Rac8 {[%emt 0:06:08]} 21. Ba6 {[%emt 0:00:11]} Qb8 {[%emt 0:00:22]} 22. Bxc8 {[%emt 0:00:09]} Rxc8 {[%emt 0:00:30]} 23. Nxe6 {[%emt 0:00:08]} Nxe6 {[%emt 0:00:27]} 24. Rxc8+ {[%emt 0:00:07]} Qxc8 {[%emt 0:00:05]} 25. Rc1 {[%emt 0:00:03]} Qb7 {[%emt 0:02:16]} 26. Qc2 {[%emt 0:00:09]} Kf8 {[%emt 0:04:47]} 27. Qc8+ {[%emt 0:00:24]} Qxc8 {[%emt 0:00:10]} 28. Rxc8+ {[%emt 0:00:05]} Ke7 {[%emt 0:00:08]} 29. Kf1 {[%emt 0:00:38]} a5 {[%emt 0:07:18]} 30. a4 {[%emt 0:00:51]} h5 {[%emt 0:01:14]} 31. Ke2 {[%emt 0:00:41]} g6 {[%emt 0:03:11]} 32. Rc1 {[%emt 0:00:59]} Nd8 {[%emt 0:02:40]} 33. Kd2 {[%emt 0:00:17]} Kd6 {[%emt 0:02:00]} 34. Ne1 {[%emt 0:00:34]} Nc6 {[%emt 0:00:57]} 35. Nd3 {[%emt 0:00:13]} Ndb8 {[%emt 0:01:20]} 36. Rb1 {[%emt 0:00:13]} Nd7 {[%emt 0:00:41]} 37. Kc3 {[%emt 0:00:33]} Ke6 {[%emt 0:00:52]} 38. f3 {[%emt 0:00:24]} Kf5 {[%emt 0:03:41]} 39. Rb5 {[%emt 0:00:15]} Ne7 {[%emt 0:01:29]} 40. e4+ {[%emt 0:00:00]} Kf6 {[%emt 0:00:00]} 41. Nf4 {[%emt 0:01:18]} dxe4 {[%emt 0:02:59]} 42. fxe4 {[%emt 0:00:06]} Nc8 {[%emt 0:00:56]} 43. Rb1 {[%emt 0:00:12]} Ke7 {[%emt 0:00:21]} 44. e5 {[%emt 0:00:23]} h4 {[%emt 0:01:47]} 45. Kc4 {[%emt 0:00:17]} g5 {[%emt 0:01:02]} 46. Nd5+ {[%emt 0:00:10]} Ke6 {[%emt 0:01:56]} 47. Nc7+ {[%emt 0:00:34]} Ke7 {[%emt 0:00:23]} 48. Nb5 {[%emt 0:00:14]} f6 {[%emt 0:01:33]} 49. exf6+ {[%emt 0:00:17]} Kxf6 {[%emt 0:00:06]} 50. Kd5 {[%emt 0:00:12]} Ke7 {[%emt 0:01:26]} 51. Re1+ {[%emt 0:00:30]} Kd8 {[%emt 0:00:28]} 52. Ke6 {[%emt 0:00:12]} Nb8 {[%emt 0:01:21]} 53. Rf1 {[%emt 0:00:14]} Ke8 {[%emt 0:00:37]} 54. Nd6+ {[%emt 0:00:05]} Nxd6 {[%emt 0:00:15]} 55. Kxd6 {[%emt 0:00:04]} Nd7 {[%emt 0:00:52]} 56. Kc7 {[%emt 0:00:11]} 1-0

[Event "FIDE WYCC Top Boards Girls 2023"]
[Site "Montesilvano"]
[Date "2023.11.13"]
[Round "1.11"]
[White "Jiang, Hanxi"]
[Black "Shukhman, Anna"]
[Result "0-1"]
[ECO "D24"]
[WhiteElo "1575"]
[BlackElo "2263"]
[Annotator "ChessBase"]
[PlyCount "58"]
[EventDate "2023.11.13"]
[EventType "swiss"]
[EventCountry "ITA"]
[SourceTitle "playchess.com"]
[Source "ChessBase"]
[SourceQuality "1"]
[TimeControl "40/5400+30:1800+30"]

1. d4 {[%emt 0:00:03]} Nf6 {[%emt 0:00:07]} 2. c4 {[%emt 0:00:05]} e6 {[%emt 0:01:11]} 3. Nf3 {[%emt 0:00:57]} d5 {[%emt 0:00:05]} 4. Nc3 {[%emt 0:00:23]} dxc4 {[%emt 0:00:46]} 5. e4 {[%emt 0:00:59]} b5 {[%emt 0:00:21]} 6. e5 {[%emt 0:05:00]} Nd5 {[%emt 0:00:04]} 7. Nxb5 {[%emt 0:02:51]} Nb6 {[%emt 0:00:05]} 8. Be2 {[%emt 0:05:14]} Bb7 {[%emt 0:00:11]} 9. O-O {[%emt 0:02:06]} Nc6 {[%emt 0:00:07]} 10. Bg5 {[%emt 0:03:31]} Qd7 {[%emt 0:06:14]} 11. Rc1 {[%emt 0:07:26]} Na5 {[%emt 0:07:50]} 12. a4 {[%emt 0:09:43]} a6 {[%emt 0:04:37]} 13. Nc3 {[%emt 0:11:06]} h6 {[%emt 0:00:15]} 14. Be3 {[%emt 0:01:04]} Bb4 {[%emt 0:05:51]} 15. Nh4 {[%emt 0:07:23]} Be7 {[%emt 0:11:01]} 16. Nf3 {[%emt 0:06:11]} Bc6 {[%emt 0:02:16]} 17. Nd2 {[%emt 0:01:35]} Rb8 {[%emt 0:13:31]} 18. f4 {[%emt 0:05:02]} O-O {[%emt 0:19:11]} 19. Bg4 {[%emt 0:07:07]} Nxa4 {[%emt 0:02:06]} 20. f5 {[%emt 0:06:03]} Bg5 {[%emt 0:12:19]} 21. Bf2 {[%emt 0:13:14]} exf5 {[%emt 0:01:50]} 22. Bh5 {[%emt 0:01:24]} Rxb2 {[%emt 0:00:20]} 23. Nf3 {[%emt 0:01:10]} Bxc1 {[%emt 0:00:08]} 24. Qxc1 {[%emt 0:00:11]} Nb3 {[%emt 0:00:06]} 25. Qe3 {[%emt 0:00:46]} f4 {[%emt 0:01:01]} 26. Qxf4 {[%emt 0:01:21]} Nxc3 {[%emt 0:00:10]} 27. Nh4 {[%emt 0:00:27]} Ne2+ {[%emt 0:03:45]} 28. Bxe2 {[%emt 0:00:08]} Rxe2 {[%emt 0:00:02]} 29. Nf5 {[%emt 0:00:50]} Re4 {[%emt 0:00:12]} 0-1

[Event "FIDE WYCC Top Boards Girls 2023"]
[Site "Montesilvano"]
[Date "2023.11.13"]
[Round "1.12"]
[White "Nurgaliyeva, Zarina"]
[Black "Alemanova, Yasmina"]
[Result "1-0"]
[ECO "C02"]
[WhiteElo "2104"]
[BlackElo "1570"]
[Annotator "NA"]
[PlyCount "51"]
[EventDate "2023.11.13"]
[EventType "swiss"]
[EventCountry "ITA"]
[SourceTitle "playchess.com"]
[Source "ChessBase"]
[SourceQuality "1"]
[TimeControl "40/5400+30:1800+30"]

1. e4 {[%emt 0:00:06]} e6 {[%emt 0:00:06]} 2. d4 {[%emt 0:00:06]} d5 {[%emt 0:00:04]} 3. e5 {[%emt 0:00:04]} c5 {[%emt 0:00:04]} 4. c3 {[%emt 0:00:06]} Nc6 {[%emt 0:00:04]} 5. Nf3 {[%emt 0:00:20]} Bd7 {[%emt 0:00:07]} 6. Be2 {[%emt 0:00:06]} Rc8 {[%emt 0:00:35]} 7. O-O {[%emt 0:01:39]} Be7 {[%emt 0:01:08]} 8. Be3 {[%emt 0:03:09]} f6 {[%emt 0:01:59]} 9. Nbd2 {[%emt 0:06:40]} cxd4 {[%emt 0:08:41]} 10. cxd4 {[%emt 0:00:32]} Nh6 {[%emt 0:04:40]} 11. Bxh6 {[%emt 0:06:10]} gxh6 {[%emt 0:00:05]} 12. exf6 {[%emt 0:07:07]} Bxf6 {[%emt 0:00:07]} 13. Nb3 {[%emt 0:00:32]} O-O {[%emt 0:01:22]} 14. Re1 {[%emt 0:04:50]} Nb4 {[%emt 0:05:15]} 15. Bd3 {[%emt 0:03:09]} Nxd3 {[%emt 0:01:27]} 16. Qxd3 {[%emt 0:00:07]} b6 {[%emt 0:00:12]} 17. Nbd2 {[%emt 0:04:17]} Bg7 {[%emt 0:05:49]} 18. Ne5 {[%emt 0:09:11]} Rf5 {[%emt 0:02:40]} 19. Ndf3 {[%emt 0:00:41]} Be8 {[%emt 0:01:10]} 20. Qe3 {[%emt 0:04:15]} Bh5 {[%emt 0:05:55]} 21. g4 {[%emt 0:09:07]} Bxg4 {[%emt 0:12:32]} 22. Nxg4 {[%emt 0:00:23]} Qf8 {[%emt 0:00:04]} 23. Nge5 {[%emt 0:02:41]} Rc2 {[%emt 0:11:35]} 24. Rac1 {[%emt 0:00:57]} Rxb2 {[%emt 0:01:41]} 25. Nd7 {[%emt 0:01:47]} Qe7 {[%emt 0:03:50]} 26. Rc8+ {[%emt 0:07:03]} 1-0

[Event "FIDE WYCC Top Boards Girls 2023"]
[Site "Montesilvano"]
[Date "2023.11.15"]
[Round "3.7"]
[White "Sevcikova, Lucia"]
[Black "Hrebenshchykova, Yelyzaveta"]
[Result "0-1"]
[ECO "E70"]
[WhiteElo "2047"]
[BlackElo "2292"]
[Annotator "RC"]
[PlyCount "90"]
[EventDate "2023.11.13"]
[EventType "swiss"]
[EventCountry "ITA"]
[SourceTitle "playchess.com"]
[Source "ChessBase"]
[SourceQuality "1"]
[TimeControl "40/5400+30:1800+30"]

1. d4 {[%emt 0:00:03]} Nf6 {[%emt 0:00:04]} 2. c4 {[%emt 0:00:03]} g6 {[%emt 0:00:09]} 3. Nc3 {[%emt 0:00:05]} Bg7 {[%emt 0:00:10]} 4. e4 {[%emt 0:00:05]} d6 {[%emt 0:00:03]} 5. Bd3 {[%emt 0:00:05]} O-O {[%emt 0:00:40]} 6. Nge2 {[%emt 0:00:05]} Nc6 {[%emt 0:00:15]} 7. O-O {[%emt 0:00:13]} e5 {[%emt 0:00:42]} 8. d5 {[%emt 0:00:06]} Nd4 {[%emt 0:00:12]} 9. Nxd4 {[%emt 0:00:23]} exd4 {[%emt 0:00:06]} 10. Ne2 {[%emt 0:00:07]} Re8 {[%emt 0:05:43]} 11. f3 {[%emt 0:01:11]} c5 {[%emt 0:14:46]} 12. Bg5 {[%emt 0:11:02]} h6 {[%emt 0:00:34]} 13. Bh4 {[%emt 0:02:58]} Bd7 {[%emt 0:13:46]} 14. Qc2 {[%emt 0:12:31]} a6 {[%emt 0:10:17]} 15. a4 {[%emt 0:05:39]} Rb8 {[%emt 0:06:12]} 16. b3 {[%emt 0:08:04]} Qc7 {[%emt 0:01:54]} 17. h3 {[%emt 0:03:01]} b5 {[%emt 0:07:22]} 18. axb5 {[%emt 0:07:27]} axb5 {[%emt 0:00:04]} 19. f4 {[%emt 0:02:46]} bxc4 {[%emt 0:00:42]} 20. bxc4 {[%emt 0:00:10]} Rb6 {[%emt 0:01:57]} 21. Rfb1 {[%emt 0:07:37]} Rxb1+ {[%emt 0:05:16]} 22. Qxb1 {[%emt 0:02:16]} Nh7 {[%emt 0:04:18]} 23. f5 {[%emt 0:05:49]} Be5 {[%emt 0:05:04]} 24. g4 {[%emt 0:08:18]} Kg7 {[%emt 0:00:26]} 25. Qa2 {[%emt 0:03:12]} Rb8 {[%emt 0:03:03]} 26. Bg3 {[%emt 0:04:40]} Bxg3 {[%emt 0:00:51]} 27. Nxg3 {[%emt 0:00:03]} Qd8 {[%emt 0:00:31]} 28. fxg6 {[%emt 0:04:05]} fxg6 {[%emt 0:00:08]} 29. Qa7 {[%emt 0:05:29]} Rb3 {[%emt 0:03:51]} 30. Ra3 {[%emt 0:01:41]} Rxa3 {[%emt 0:03:47]} 31. Qxa3 {[%emt 0:00:02]} Qg5 {[%emt 0:03:35]} 32. Be2 {[%emt 0:03:24]} Nf6 {[%emt 0:00:18]} 33. Kg2 {[%emt 0:01:28]} h5 {[%emt 0:01:44]} 34. gxh5 {[%emt 0:01:37]} gxh5 {[%emt 0:00:14]} 35. Kh2 {[%emt 0:00:47]} h4 {[%emt 0:02:13]} 36. Nf1 {[%emt 0:00:34]} Qf4+ {[%emt 0:00:09]} 37. Kg2 {[%emt 0:00:33]} Nxe4 {[%emt 0:00:15]} 38. Qf3 {[%emt 0:01:12]} Qxf3+ {[%emt 0:00:52]} 39. Bxf3 {[%emt 0:00:04]} Ng5 {[%emt 0:00:08]} 40. Bg4 {[%emt 0:00:00]} Bxg4 {[%emt 0:00:00]} 41. hxg4 {[%emt 0:00:49]} Kf6 {[%emt 0:01:09]} 42. Nd2 {[%emt 0:03:13]} Ke5 {[%emt 0:00:31]} 43. Nb3 {[%emt 0:00:21]} Kf4 {[%emt 0:04:12]} 44. Na5 {[%emt 0:00:43]} d3 {[%emt 0:00:44]} 45. Nb3 {[%emt 0:00:50]} Ke5 {[%emt 0:01:17]} 0-1

[Event "FIDE WYCC Top Boards Girls 2023"]
[Site "Montesilvano"]
[Date "2023.11.15"]
[Round "3.8"]
[White "Sosovickova, Jana"]
[Black "Wu, Rochelle"]
[Result "0-1"]
[ECO "D30"]
[WhiteElo "2013"]
[BlackElo "2228"]
[Annotator "ChessBase"]
[PlyCount "118"]
[EventDate "2023.11.13"]
[EventType "swiss"]
[EventCountry "ITA"]
[SourceTitle "playchess.com"]
[Source "ChessBase"]
[SourceQuality "1"]
[TimeControl "40/5400+30:1800+30"]

1. d4 {[%emt 0:00:04]} d5 {[%emt 0:00:33]} 2. c4 {[%emt 0:00:17]} e6 {[%emt 0:00:04]} 3. Nf3 {[%emt 0:01:26]} Be7 {[%emt 0:00:17]} 4. e3 {[%emt 0:00:59]} Nf6 {[%emt 0:01:05]} 5. Bd3 {[%emt 0:03:19]} O-O {[%emt 0:01:54]} 6. O-O {[%emt 0:00:32]} dxc4 {[%emt 0:02:26]} 7. Bxc4 {[%emt 0:00:06]} b6 {[%emt 0:00:38]} 8. b3 {[%emt 0:02:58]} Bb7 {[%emt 0:00:18]} 9. Ba3 {[%emt 0:02:40]} Bxa3 {[%emt 0:02:21]} 10. Nxa3 {[%emt 0:00:24]} Qe7 {[%emt 0:00:21]} 11. Nc2 {[%emt 0:07:22]} Nbd7 {[%emt 0:03:31]} 12. Qe2 {[%emt 0:05:55]} Rad8 {[%emt 0:01:28]} 13. Rfd1 {[%emt 0:03:11]} Ne4 {[%emt 0:01:25]} 14. Qe1 {[%emt 0:03:15]} Qf6 {[%emt 0:02:08]} 15. Bf1 {[%emt 0:11:06]} c5 {[%emt 0:11:41]} 16. Na3 {[%emt 0:04:06]} cxd4 {[%emt 0:01:47]} 17. Nxd4 {[%emt 0:08:21]} Ng5 {[%emt 0:06:09]} 18. h4 {[%emt 0:11:04]} Ne4 {[%emt 0:08:27]} 19. f3 {[%emt 0:00:17]} Nd6 {[%emt 0:03:31]} 20. Nab5 {[%emt 0:06:48]} Nc8 {[%emt 0:08:19]} 21. b4 {[%emt 0:05:33]} Ne5 {[%emt 0:05:29]} 22. Qg3 {[%emt 0:11:57]} Ng6 {[%emt 0:03:43]} 23. h5 {[%emt 0:01:24]} Nge7 {[%emt 0:00:02]} 24. Qf4 {[%emt 0:05:32]} Qxf4 {[%emt 0:00:55]} 25. exf4 {[%emt 0:00:05]} Nd5 {[%emt 0:01:10]} 26. f5 {[%emt 0:01:22]} a6 {[%emt 0:01:44]} 27. fxe6 {[%emt 0:01:32]} axb5 {[%emt 0:00:08]} 28. exf7+ {[%emt 0:00:06]} Rxf7 {[%emt 0:00:17]} 29. Nxb5 {[%emt 0:01:19]} Rfd7 {[%emt 0:03:10]} 30. Bc4 {[%emt 0:01:14]} Kh8 {[%emt 0:00:07]} 31. a3 {[%emt 0:00:14]} h6 {[%emt 0:00:11]} 32. Re1 {[%emt 0:00:40]} Nf4 {[%emt 0:00:48]} 33. Re5 {[%emt 0:00:40]} Rd2 {[%emt 0:04:49]} 34. Bf1 {[%emt 0:00:56]} R2d5 {[%emt 0:01:21]} 35. Rae1 {[%emt 0:00:28]} Nxh5 {[%emt 0:01:17]} 36. Re8+ {[%emt 0:00:02]} Rxe8 {[%emt 0:00:53]} 37. Rxe8+ {[%emt 0:00:04]} Kh7 {[%emt 0:00:03]} 38. Bc4 {[%emt 0:00:38]} Rd1+ {[%emt 0:00:02]} 39. Kh2 {[%emt 0:00:19]} Nf6 {[%emt 0:00:43]} 40. Rf8 {[%emt 0:00:00]} Rd2 {[%emt 0:00:00]} 41. Be6 {[%emt 0:02:00]} Ne7 {[%emt 0:07:10]} 42. Rf7 {[%emt 0:04:17]} Nfg8 {[%emt 0:25:38]} 43. Nc7 {[%emt 0:04:21]} Rd8 {[%emt 0:01:03]} 44. Bb3 {[%emt 0:02:17]} Bc8 {[%emt 0:00:44]} 45. Ba4 {[%emt 0:08:03]} Kh8 {[%emt 0:03:45]} 46. Ne8 {[%emt 0:01:59]} Be6 {[%emt 0:01:26]} 47. Rf4 {[%emt 0:00:34]} Ng6 {[%emt 0:01:16]} 48. Re4 {[%emt 0:00:19]} Bf5 {[%emt 0:01:22]} 49. Rc4 {[%emt 0:00:23]} b5 {[%emt 0:01:14]} 50. Bxb5 {[%emt 0:00:29]} Bd3 {[%emt 0:00:04]} 51. Rg4 {[%emt 0:04:47]} Bxb5 {[%emt 0:00:10]} 52. Nc7 {[%emt 0:00:04]} Bd3 {[%emt 0:00:13]} 53. b5 {[%emt 0:00:57]} Nf6 {[%emt 0:02:59]} 54. Rb4 {[%emt 0:00:32]} Bxb5 {[%emt 0:03:58]} 55. Rxb5 {[%emt 0:00:14]} Rd2 {[%emt 0:00:32]} 56. Rb8+ {[%emt 0:03:03]} Kh7 {[%emt 0:00:03]} 57. Ne6 {[%emt 0:00:13]} Re2 {[%emt 0:03:43]} 58. Nd4 {[%emt 0:01:15]} Ra2 {[%emt 0:00:16]} 59. Ne6 {[%emt 0:02:18]} Nh5 {[%emt 0:02:56]} 0-1